[Event "*** Titled Tuesday Blitz"]
[Site "Chess.com"]
[Date "2019.04.02"]
[Round "10"]
[White "chessdjw"]
[Black "nubair1198"]
[Result "1-0"]
[WhiteElo "2633"]
[BlackElo "2659"]
[TimeControl "180+2"]
[EndTime "16:17:14 PDT"]
[Termination "chessdjw won by checkmate"]

1. e4 {[%clk 0:03:01.9]} 1... c6 {[%clk 0:02:58.2]} 2. Nf3 {[%clk 0:03:02.1]}
2... d5 {[%clk 0:03:00.1]} 3. Nc3 {[%clk 0:03:03.2]} 3... Nf6 {[%clk 0:03:00.7]}
4. exd5 {[%clk 0:03:02]} 4... cxd5 {[%clk 0:03:01.4]} 5. Ne5 {[%clk 0:03:01.1]}
5... a6 {[%clk 0:03:01.7]} 6. d4 {[%clk 0:03:01.6]} 6... Bf5 {[%clk 0:02:58.7]}
7. g4 {[%clk 0:02:59.2]} 7... Be4 {[%clk 0:02:56.5]} 8. f3 {[%clk 0:02:54]} 8...
Bg6 {[%clk 0:02:57.5]} 9. h4 {[%clk 0:02:55.3]} 9... h5 {[%clk 0:02:35.6]} 10.
g5 {[%clk 0:02:55.5]} 10... Ng8 {[%clk 0:02:23.8]} 11. Nxg6 {[%clk 0:02:53.7]}
11... fxg6 {[%clk 0:02:25.7]} 12. Bd3 {[%clk 0:02:50.4]} 12... Qd6 {[%clk
0:02:23]} 13. Ne2 {[%clk 0:01:55.8]} 13... Nc6 {[%clk 0:01:57.8]} 14. Nf4 {[%clk
0:01:55]} 14... O-O-O {[%clk 0:01:54.7]} 15. Nxg6 {[%clk 0:01:53.3]} 15... Qg3+
{[%clk 0:01:44]} 16. Kf1 {[%clk 0:01:52.4]} 16... e5 {[%clk 0:01:45.3]} 17. Bf5+
{[%clk 0:01:46.4]} 17... Kb8 {[%clk 0:01:45.1]} 18. Rh3 {[%clk 0:01:47.3]} 18...
Nge7 {[%clk 0:01:25.7]} 19. Rxg3 {[%clk 0:01:36.9]} 19... Nxf5 {[%clk
0:01:27.1]} 20. Rh3 {[%clk 0:01:36.7]} 20... Rg8 {[%clk 0:01:19.4]} 21. dxe5
{[%clk 0:01:33.7]} 21... Bc5 {[%clk 0:01:19.8]} 22. Qd3 {[%clk 0:01:33.6]} 22...
Rgf8 {[%clk 0:01:18.4]} 23. Nxf8 {[%clk 0:01:33.6]} 23... Rxf8 {[%clk
0:01:20.3]} 24. Qxd5 {[%clk 0:01:25.7]} 24... Be3 {[%clk 0:01:21.3]} 25. f4
{[%clk 0:01:11.4]} 25... Rd8 {[%clk 0:00:44.1]} 26. Qxd8+ {[%clk 0:01:08.2]}
26... Nxd8 {[%clk 0:00:41.8]} 27. Bxe3 {[%clk 0:01:10.1]} 27... Ne6 {[%clk
0:00:43.7]} 28. Rd1 {[%clk 0:01:09.9]} 28... Kc7 {[%clk 0:00:45.2]} 29. c3
{[%clk 0:01:08.9]} 29... g6 {[%clk 0:00:45]} 30. a4 {[%clk 0:01:09.4]} 30... b6
{[%clk 0:00:45]} 31. b4 {[%clk 0:01:08.4]} 31... a5 {[%clk 0:00:45.7]} 32. bxa5
{[%clk 0:01:07.5]} 32... bxa5 {[%clk 0:00:47.6]} 33. Rd5 {[%clk 0:01:09]} 33...
Nxe3+ {[%clk 0:00:40.8]} 34. Rxe3 {[%clk 0:01:08.2]} 34... Nxf4 {[%clk
0:00:42.7]} 35. Rxa5 {[%clk 0:01:09]} 35... Kb6 {[%clk 0:00:42.7]} 36. Rb5+
{[%clk 0:01:09.7]} 36... Kc6 {[%clk 0:00:44.2]} 37. e6 {[%clk 0:01:11.4]} 37...
Nd5 {[%clk 0:00:45.8]} 38. Rxd5 {[%clk 0:01:11.5]} 38... Kxd5 {[%clk 0:00:47.7]}
39. e7 {[%clk 0:01:13]} 39... Kc4 {[%clk 0:00:49.1]} 40. e8=Q {[%clk 0:01:13.5]}
40... Kb3 {[%clk 0:00:50.6]} 41. Qb5+ {[%clk 0:01:14.2]} 41... Kc2 {[%clk
0:00:51.7]} 42. Re2+ {[%clk 0:01:14.5]} 42... Kxc3 {[%clk 0:00:53.6]} 43. Re3+
{[%clk 0:01:15.3]} 43... Kd4 {[%clk 0:00:53.6]} 44. Rd3+ {[%clk 0:01:15.8]}
44... Ke4 {[%clk 0:00:54.3]} 45. Qd5+ {[%clk 0:01:16.3]} 45... Kf4 {[%clk
0:00:55.7]} 46. Rd4+ {[%clk 0:01:10.7]} 46... Kg3 {[%clk 0:00:55.9]} 47. Qg2#
{[%clk 0:01:10.7]} 1-0

[Event "*** Titled Tuesday Blitz"]
[Site "Chess.com"]
[Date "2019.04.02"]
[Round "10"]
[White "effefe"]
[Black "2nd_life"]
[Result "0-1"]
[WhiteElo "2300"]
[BlackElo "2469"]
[TimeControl "180+2"]
[EndTime "16:17:31 PDT"]
[Termination "2nd_life won by resignation"]

1. d4 {[%clk 0:03:01.9]} 1... Nf6 {[%clk 0:03:00.3]} 2. c4 {[%clk 0:03:02.7]}
2... e6 {[%clk 0:03:01.1]} 3. Nc3 {[%clk 0:03:02.7]} 3... Bb4 {[%clk 0:03:01.4]}
4. a3 {[%clk 0:03:04]} 4... Bxc3+ {[%clk 0:03:02]} 5. bxc3 {[%clk 0:03:05.9]}
5... d5 {[%clk 0:03:02.6]} 6. cxd5 {[%clk 0:03:05.8]} 6... Qxd5 {[%clk
0:02:59.3]} 7. e3 {[%clk 0:03:07.7]} 7... c5 {[%clk 0:02:54.9]} 8. f3 {[%clk
0:03:05.5]} 8... cxd4 {[%clk 0:02:48.7]} 9. cxd4 {[%clk 0:03:07.4]} 9... Nc6
{[%clk 0:02:49.1]} 10. Bd3 {[%clk 0:03:04.5]} 10... e5 {[%clk 0:02:46.1]} 11.
Ne2 {[%clk 0:02:56.2]} 11... exd4 {[%clk 0:02:42.4]} 12. exd4 {[%clk 0:02:56.8]}
12... O-O {[%clk 0:02:34.9]} 13. O-O {[%clk 0:02:57.1]} 13... Nxd4 {[%clk
0:02:32.5]} 14. Bxh7+ {[%clk 0:02:57.5]} 14... Kxh7 {[%clk 0:02:32.4]} 15. Qxd4
{[%clk 0:02:59.1]} 15... Re8 {[%clk 0:02:20.4]} 16. Qh4+ {[%clk 0:02:40.9]}
16... Kg8 {[%clk 0:02:20]} 17. Ng3 {[%clk 0:02:37.3]} 17... Bd7 {[%clk
0:02:15.5]} 18. Bg5 {[%clk 0:02:35.2]} 18... Nh7 {[%clk 0:02:07.8]} 19. Rfd1
{[%clk 0:01:32]} 19... Qc5+ {[%clk 0:01:42]} 20. Kh1 {[%clk 0:01:32.4]} 20...
Bc6 {[%clk 0:01:42.2]} 21. Bd2 {[%clk 0:01:18.6]} 21... Rad8 {[%clk 0:01:39.6]}
22. Bb4 {[%clk 0:01:17.2]} 22... Rxd1+ {[%clk 0:01:37.2]} 23. Rxd1 {[%clk
0:01:17.9]} 23... Qc2 {[%clk 0:01:18.3]} 24. Qd4 {[%clk 0:01:12.2]} 24... Nf8
{[%clk 0:01:02.9]} 25. Bxf8 {[%clk 0:01:03.2]} 25... Kxf8 {[%clk 0:01:03.6]} 26.
Nh5 {[%clk 0:01:03]} 26... Qg6 {[%clk 0:00:59.8]} 27. Nf4 {[%clk 0:00:57.4]}
27... Qf5 {[%clk 0:00:58.7]} 28. h4 {[%clk 0:00:49.6]} 28... Kg8 {[%clk
0:00:57.7]} 29. Kh2 {[%clk 0:00:46]} 29... Kh7 {[%clk 0:00:55.1]} 30. Rc1 {[%clk
0:00:46.9]} 30... Re4 {[%clk 0:00:46.3]} 31. fxe4 {[%clk 0:00:02.9]} 31... Qxf4+
{[%clk 0:00:47]} 32. g3 {[%clk 0:00:04.4]} 32... Qxc1 {[%clk 0:00:47.8]} 33. Qe5
{[%clk 0:00:05.7]} 33... Qd2+ {[%clk 0:00:46.5]} 34. Kh3 {[%clk 0:00:07.2]}
34... Bd7+ {[%clk 0:00:44.5]} 35. g4 {[%clk 0:00:07.6]} 35... Qe3+ {[%clk
0:00:44.7]} 0-1

[Event "*** Titled Tuesday Blitz"]
[Site "Chess.com"]
[Date "2019.04.02"]
[Round "10"]
[White "ChainsOfFantasia"]
[Black "Vuk2000"]
[Result "1-0"]
[WhiteElo "2506"]
[BlackElo "2694"]
[TimeControl "180+2"]
[EndTime "16:17:39 PDT"]
[Termination "ChainsOfFantasia won by resignation"]

1. d4 {[%clk 0:03:01.9]} 1... Nf6 {[%clk 0:03:00.7]} 2. Nf3 {[%clk 0:03:00.2]}
2... e6 {[%clk 0:03:02]} 3. e3 {[%clk 0:03:01.5]} 3... b6 {[%clk 0:03:02.3]} 4.
Bd3 {[%clk 0:03:03.1]} 4... Bb7 {[%clk 0:03:03.7]} 5. O-O {[%clk 0:03:04.6]}
5... c6 {[%clk 0:03:05.2]} 6. Nbd2 {[%clk 0:03:04.3]} 6... c5 {[%clk 0:03:06.6]}
7. c3 {[%clk 0:03:05]} 7... Be7 {[%clk 0:03:06.8]} 8. Qe2 {[%clk 0:03:06]} 8...
O-O {[%clk 0:03:07.6]} 9. e4 {[%clk 0:03:07.5]} 9... d6 {[%clk 0:03:08.9]} 10.
e5 {[%clk 0:03:08.2]} 10... dxe5 {[%clk 0:03:09.7]} 11. dxe5 {[%clk 0:03:10.1]}
11... Nfd7 {[%clk 0:03:09.2]} 12. Ne4 {[%clk 0:03:09.4]} 12... Nc6 {[%clk
0:03:09]} 13. Bf4 {[%clk 0:03:10.3]} 13... Qc7 {[%clk 0:03:07.3]} 14. Neg5
{[%clk 0:03:01.4]} 14... g6 {[%clk 0:02:37.5]} 15. Rfe1 {[%clk 0:02:36.5]} 15...
Rfd8 {[%clk 0:02:22.7]} 16. h4 {[%clk 0:02:11.8]} 16... c4 {[%clk 0:01:56.3]}
17. Bc2 {[%clk 0:02:09.2]} 17... Nc5 {[%clk 0:01:54]} 18. Rad1 {[%clk
0:01:59.3]} 18... Ba6 {[%clk 0:01:47.6]} 19. h5 {[%clk 0:01:47.1]} 19... Nd3
{[%clk 0:01:45.7]} 20. Bxd3 {[%clk 0:01:47.4]} 20... Rxd3 {[%clk 0:01:32.5]} 21.
hxg6 {[%clk 0:01:46.2]} 21... hxg6 {[%clk 0:01:32.9]} 22. Qe4 {[%clk 0:01:32.3]}
22... Qd7 {[%clk 0:01:28.2]} 23. Rxd3 {[%clk 0:01:22.6]} 23... cxd3 {[%clk
0:01:29.4]} 24. Bd2 {[%clk 0:01:20.2]} 24... Kf8 {[%clk 0:00:57.7]} 25. Qh4
{[%clk 0:01:08.1]} 25... Ke8 {[%clk 0:00:54.1]} 26. Qh8+ {[%clk 0:00:54.2]}
26... Bf8 {[%clk 0:00:54.2]} 27. Ne4 {[%clk 0:00:55.7]} 27... Qc7 {[%clk
0:00:19.2]} 28. Bg5 {[%clk 0:00:37.4]} 28... Qb7 {[%clk 0:00:07.1]} 29. Nd6+
{[%clk 0:00:37]} 29... Kd7 {[%clk 0:00:08.5]} 30. Nxb7 {[%clk 0:00:37.6]} 30...
Bxb7 {[%clk 0:00:10.4]} 31. Rd1 {[%clk 0:00:35.5]} 31... Ba6 {[%clk 0:00:11.5]}
32. Qf6 {[%clk 0:00:34.9]} 32... Ke8 {[%clk 0:00:10.6]} 33. Qh8 {[%clk
0:00:32.3]} 33... Kd7 {[%clk 0:00:11.3]} 34. Bh6 {[%clk 0:00:33.5]} 34... Ke7
{[%clk 0:00:10.3]} 35. Qf6+ {[%clk 0:00:32.5]} 35... Ke8 {[%clk 0:00:11.6]} 36.
Bxf8 {[%clk 0:00:33.7]} 1-0

[Event "*** Titled Tuesday Blitz"]
[Site "Chess.com"]
[Date "2019.04.02"]
[Round "10"]
[White "Andrew-FB00"]
[Black "Perecke"]
[Result "0-1"]
[WhiteElo "1877"]
[BlackElo "2083"]
[TimeControl "180+2"]
[EndTime "16:17:46 PDT"]
[Termination "Perecke won by resignation"]

1. e4 {[%clk 0:03:01.9]} 1... e5 {[%clk 0:02:55.7]} 2. Nf3 {[%clk 0:03:02.5]}
2... Nc6 {[%clk 0:02:43.6]} 3. Bb5 {[%clk 0:03:02.5]} 3... a6 {[%clk 0:02:43.8]}
4. Ba4 {[%clk 0:03:02.8]} 4... Nf6 {[%clk 0:02:44.6]} 5. d4 {[%clk 0:03:02.9]}
5... exd4 {[%clk 0:02:39.6]} 6. O-O {[%clk 0:03:02.9]} 6... b5 {[%clk
0:02:37.7]} 7. Bb3 {[%clk 0:03:02.8]} 7... d6 {[%clk 0:02:39]} 8. Re1 {[%clk
0:02:54.5]} 8... Be7 {[%clk 0:02:38.5]} 9. Bd5 {[%clk 0:02:50.8]} 9... Nxd5
{[%clk 0:02:08.9]} 10. exd5 {[%clk 0:02:50.9]} 10... Ne5 {[%clk 0:02:02.5]} 11.
Nxd4 {[%clk 0:02:50.8]} 11... O-O {[%clk 0:02:02.2]} 12. f4 {[%clk 0:02:39.7]}
12... Ng6 {[%clk 0:02:03.1]} 13. Nc3 {[%clk 0:02:35.9]} 13... Bb7 {[%clk
0:02:03.5]} 14. a3 {[%clk 0:02:30]} 14... Bf6 {[%clk 0:02:04.4]} 15. Be3 {[%clk
0:02:19.4]} 15... Re8 {[%clk 0:02:03.8]} 16. Qd2 {[%clk 0:02:17]} 16... Qd7
{[%clk 0:01:46.3]} 17. Rad1 {[%clk 0:02:13.8]} 17... Re7 {[%clk 0:01:45.3]} 18.
Bf2 {[%clk 0:01:32.6]} 18... Rae8 {[%clk 0:01:30.2]} 19. g3 {[%clk 0:01:28.5]}
19... Rxe1+ {[%clk 0:01:16.6]} 20. Rxe1 {[%clk 0:01:28.6]} 20... Rxe1+ {[%clk
0:01:17.6]} 21. Bxe1 {[%clk 0:00:59.5]} 21... Ne7 {[%clk 0:01:14.5]} 22. Bf2
{[%clk 0:00:43.1]} 22... Nxd5 {[%clk 0:01:04.1]} 23. Nxd5 {[%clk 0:00:40.8]}
23... Bxd5 {[%clk 0:01:06]} 24. c3 {[%clk 0:00:32.5]} 24... Bb7 {[%clk
0:00:58.6]} 25. Qe3 {[%clk 0:00:24.5]} 25... c5 {[%clk 0:00:51.4]} 26. Nc2
{[%clk 0:00:14.2]} 26... Qc6 {[%clk 0:00:52.1]} 27. Kf1 {[%clk 0:00:13.3]} 27...
g6 {[%clk 0:00:49.2]} 28. h4 {[%clk 0:00:12.2]} 28... Qh1+ {[%clk 0:00:47.8]}
29. Ke2 {[%clk 0:00:12.9]} 29... Bg2 {[%clk 0:00:48.7]} 30. Qe8+ {[%clk
0:00:12.9]} 30... Kg7 {[%clk 0:00:48.3]} 31. Ne3 {[%clk 0:00:10]} 31... Bf3+
{[%clk 0:00:45.2]} 32. Kd2 {[%clk 0:00:09.9]} 32... Qb1 {[%clk 0:00:44.5]} 33.
Nf5+ {[%clk 0:00:03.6]} 33... gxf5 {[%clk 0:00:44.8]} 34. Qe3 {[%clk 0:00:04.1]}
34... Qxb2+ {[%clk 0:00:45.5]} 35. Ke1 {[%clk 0:00:04.8]} 35... Bxc3+ {[%clk
0:00:46.3]} 36. Kf1 {[%clk 0:00:05.1]} 36... Bd4 {[%clk 0:00:44.5]} 37. Qxf3
{[%clk 0:00:05.1]} 37... Qxf2+ {[%clk 0:00:46.1]} 38. Qxf2 {[%clk 0:00:05.9]}
38... Bxf2 {[%clk 0:00:48]} 39. Kxf2 {[%clk 0:00:07.2]} 39... d5 {[%clk
0:00:49.3]} 0-1

[Event "*** Titled Tuesday Blitz"]
[Site "Chess.com"]
[Date "2019.04.02"]
[Round "10"]
[White "champ2005"]
[Black "Yoshkinkot"]
[Result "1-0"]
[WhiteElo "2807"]
[BlackElo "2581"]
[TimeControl "180+2"]
[EndTime "16:18:09 PDT"]
[Termination "champ2005 won by resignation"]

1. d4 {[%clk 0:03:01.2]} 1... Nf6 {[%clk 0:03:00.5]} 2. Nc3 {[%clk 0:03:02.1]}
2... d5 {[%clk 0:02:59.7]} 3. Bf4 {[%clk 0:03:02.5]} 3... c6 {[%clk 0:02:55.3]}
4. e3 {[%clk 0:03:02.5]} 4... Bf5 {[%clk 0:02:56.8]} 5. Nf3 {[%clk 0:03:00.7]}
5... h6 {[%clk 0:02:55.5]} 6. Ne5 {[%clk 0:03:00.5]} 6... Nbd7 {[%clk
0:02:55.5]} 7. Bd3 {[%clk 0:02:56.1]} 7... Bxd3 {[%clk 0:02:55.5]} 8. Qxd3
{[%clk 0:02:57.3]} 8... e6 {[%clk 0:02:57]} 9. O-O-O {[%clk 0:02:57.1]} 9... Nh5
{[%clk 0:02:54]} 10. Nxd7 {[%clk 0:02:26]} 10... Nxf4 {[%clk 0:02:52]} 11. exf4
{[%clk 0:02:25.3]} 11... Qxd7 {[%clk 0:02:52.6]} 12. Ne2 {[%clk 0:02:26.3]}
12... O-O-O {[%clk 0:02:52.1]} 13. g3 {[%clk 0:02:27.5]} 13... Bd6 {[%clk
0:02:46.2]} 14. Kb1 {[%clk 0:02:28.4]} 14... Kb8 {[%clk 0:02:41.9]} 15. Ng1
{[%clk 0:02:29.5]} 15... c5 {[%clk 0:02:35.1]} 16. dxc5 {[%clk 0:02:30.4]} 16...
Bxc5 {[%clk 0:02:35.9]} 17. Qe2 {[%clk 0:02:31.6]} 17... Qc7 {[%clk 0:02:25.7]}
18. Nf3 {[%clk 0:02:29.7]} 18... Rhe8 {[%clk 0:02:27.1]} 19. Rhe1 {[%clk
0:02:24.1]} 19... a6 {[%clk 0:02:27.6]} 20. Rd2 {[%clk 0:02:16.7]} 20... Ka7
{[%clk 0:02:28.2]} 21. Qe5 {[%clk 0:02:17.2]} 21... Qxe5 {[%clk 0:02:19.1]} 22.
Nxe5 {[%clk 0:02:19.1]} 22... Re7 {[%clk 0:02:17.1]} 23. Nd3 {[%clk 0:02:17.2]}
23... Bb6 {[%clk 0:02:16.8]} 24. f5 {[%clk 0:02:13]} 24... Ba5 {[%clk 0:01:10]}
25. b4 {[%clk 0:02:06.7]} 25... Bc7 {[%clk 0:01:09.8]} 26. fxe6 {[%clk
0:02:02.2]} 26... fxe6 {[%clk 0:01:07.1]} 27. Rde2 {[%clk 0:01:55.8]} 27... Rde8
{[%clk 0:01:05.6]} 28. f4 {[%clk 0:01:56.6]} 28... g5 {[%clk 0:01:06.4]} 29. f5
{[%clk 0:01:51.2]} 29... e5 {[%clk 0:00:54.4]} 30. f6 {[%clk 0:01:51.2]} 30...
Rf7 {[%clk 0:00:23.1]} 31. Nxe5 {[%clk 0:01:48.1]} 31... Bxe5 {[%clk 0:00:20.9]}
32. Rxe5 {[%clk 0:01:48.3]} 32... Ref8 {[%clk 0:00:15.1]} 33. Rxd5 {[%clk
0:01:46.4]} 33... Rxf6 {[%clk 0:00:16.3]} 34. Re2 {[%clk 0:01:47.2]} 34... Rb6
{[%clk 0:00:15.7]} 35. a3 {[%clk 0:01:47.2]} 35... Rf1+ {[%clk 0:00:16.7]} 36.
Kb2 {[%clk 0:01:47.7]} 36... Rh1 {[%clk 0:00:16.6]} 37. Rd3 {[%clk 0:01:43.5]}
37... Rf1 {[%clk 0:00:16.9]} 38. c4 {[%clk 0:01:41.2]} 38... Rbf6 {[%clk
0:00:13.3]} 39. Rdd2 {[%clk 0:01:40.7]} 39... R6f3 {[%clk 0:00:12.6]} 40. c5
{[%clk 0:01:39.1]} 40... Rf6 {[%clk 0:00:13.6]} 41. Kb3 {[%clk 0:01:38.2]} 41...
R1f3+ {[%clk 0:00:13.2]} 42. Ka4 {[%clk 0:01:38.7]} 42... Rc3 {[%clk 0:00:10.8]}
43. Rc2 {[%clk 0:01:36.9]} 43... Rd3 {[%clk 0:00:12]} 44. Rf2 {[%clk 0:01:32.9]}
44... Re6 {[%clk 0:00:13]} 45. Rce2 {[%clk 0:01:33.9]} 45... Rc6 {[%clk
0:00:08.1]} 46. Rf7 {[%clk 0:01:30]} 46... a5 {[%clk 0:00:09.2]} 47. Ree7 {[%clk
0:01:29.3]} 47... axb4 {[%clk 0:00:10.6]} 48. axb4 {[%clk 0:01:29.2]} 48... Ka8
{[%clk 0:00:04.4]} 49. Rxb7 {[%clk 0:01:27.7]} 49... Rd1 {[%clk 0:00:05.5]} 50.
Kb5 {[%clk 0:01:27.4]} 50... Re6 {[%clk 0:00:06.8]} 51. Rbc7 {[%clk 0:01:25.3]}
51... Kb8 {[%clk 0:00:07.3]} 52. Rce7 {[%clk 0:01:25.9]} 1-0

[Event "*** Titled Tuesday Blitz"]
[Site "Chess.com"]
[Date "2019.04.02"]
[Round "10"]
[White "black_pawn_16"]
[Black "suyu28"]
[Result "1-0"]
[WhiteElo "2124"]
[BlackElo "2518"]
[TimeControl "180+2"]
[EndTime "16:18:18 PDT"]
[Termination "black_pawn_16 won by checkmate"]

1. e4 {[%clk 0:03:01.9]} 1... c6 {[%clk 0:03:00.4]} 2. Nc3 {[%clk 0:02:59.6]}
2... d5 {[%clk 0:03:01.4]} 3. Nf3 {[%clk 0:03:00.6]} 3... Bg4 {[%clk 0:02:57.5]}
4. h3 {[%clk 0:02:58.6]} 4... Bxf3 {[%clk 0:02:58.1]} 5. Qxf3 {[%clk 0:03:00.1]}
5... e6 {[%clk 0:02:58.8]} 6. Be2 {[%clk 0:02:58.2]} 6... Nf6 {[%clk 0:02:59.1]}
7. O-O {[%clk 0:02:58.4]} 7... Be7 {[%clk 0:02:58]} 8. d3 {[%clk 0:02:59.4]}
8... O-O {[%clk 0:02:58.5]} 9. Qg3 {[%clk 0:02:59.3]} 9... Nbd7 {[%clk
0:02:57.9]} 10. Bh6 {[%clk 0:02:55]} 10... Ne8 {[%clk 0:02:58.3]} 11. Rae1
{[%clk 0:02:40.5]} 11... Bh4 {[%clk 0:02:58.4]} 12. Qg4 {[%clk 0:02:22.6]} 12...
f5 {[%clk 0:02:59.1]} 13. exf5 {[%clk 0:02:11.5]} 13... exf5 {[%clk 0:03:00]}
14. Qh5 {[%clk 0:02:12.8]} 14... gxh6 {[%clk 0:02:59.6]} 15. Qxh6 {[%clk
0:02:14.7]} 15... Ng7 {[%clk 0:02:52.6]} 16. Bf3 {[%clk 0:02:09.5]} 16... Bg5
{[%clk 0:02:44.7]} 17. Qd6 {[%clk 0:02:10.2]} 17... Nb6 {[%clk 0:02:40.7]} 18.
Qg3 {[%clk 0:02:08.5]} 18... Bf6 {[%clk 0:02:40.9]} 19. Ne2 {[%clk 0:02:05.1]}
19... Bh4 {[%clk 0:02:30.7]} 20. Qf4 {[%clk 0:02:00.4]} 20... Bg5 {[%clk
0:02:31.7]} 21. Qg3 {[%clk 0:02:00.5]} 21... f4 {[%clk 0:02:32.8]} 22. Qh2
{[%clk 0:01:55.7]} 22... Qf6 {[%clk 0:02:32.6]} 23. c3 {[%clk 0:01:50.6]} 23...
Rae8 {[%clk 0:02:31.7]} 24. g3 {[%clk 0:01:51.6]} 24... Nd7 {[%clk 0:02:26.3]}
25. h4 {[%clk 0:01:50.6]} 25... Ne5 {[%clk 0:02:24.9]} 26. Nd4 {[%clk
0:00:59.9]} 26... Bh6 {[%clk 0:02:21.8]} 27. g4 {[%clk 0:01:00.8]} 27... c5
{[%clk 0:02:22.8]} 28. g5 {[%clk 0:01:01.1]} 28... Bxg5 {[%clk 0:02:22.6]} 29.
hxg5 {[%clk 0:01:01.7]} 29... Qxg5+ {[%clk 0:02:24.5]} 30. Kh1 {[%clk
0:00:58.5]} 30... cxd4 {[%clk 0:02:25.3]} 31. Bxd5+ {[%clk 0:00:54.6]} 31... Kh8
{[%clk 0:02:25.9]} 32. Rg1 {[%clk 0:00:51]} 32... Ng4 {[%clk 0:02:24.5]} 33.
Rxe8 {[%clk 0:00:41.3]} 33... Rxe8 {[%clk 0:02:25.4]} 34. Be4 {[%clk 0:00:33.4]}
34... h5 {[%clk 0:02:11.5]} 35. f3 {[%clk 0:00:33.4]} 35... dxc3 {[%clk
0:01:57.3]} 36. bxc3 {[%clk 0:00:35.3]} 36... Nxh2 {[%clk 0:01:45.2]} 37. Rxg5
{[%clk 0:00:34]} 37... Rxe4 {[%clk 0:01:44.9]} 38. fxe4 {[%clk 0:00:31.7]} 38...
Ng4 {[%clk 0:01:45.9]} 39. Kg2 {[%clk 0:00:30.1]} 39... Kh7 {[%clk 0:01:44.3]}
40. Rb5 {[%clk 0:00:21.9]} 40... h4 {[%clk 0:01:41.9]} 41. Kf3 {[%clk
0:00:21.6]} 41... h3 {[%clk 0:01:37.5]} 42. Kxg4 {[%clk 0:00:20.8]} 42... h2
{[%clk 0:01:38.3]} 43. Rb1 {[%clk 0:00:21.7]} 43... Ne6 {[%clk 0:01:39.5]} 44.
Rh1 {[%clk 0:00:21.7]} 44... Kg6 {[%clk 0:01:39.9]} 45. Rxh2 {[%clk 0:00:22.8]}
45... Nc5 {[%clk 0:01:41.2]} 46. Rd2 {[%clk 0:00:22.3]} 46... Ne6 {[%clk
0:01:42.1]} 47. d4 {[%clk 0:00:23.5]} 47... Ng5 {[%clk 0:01:42.7]} 48. Kxf4
{[%clk 0:00:23.9]} 48... Kf6 {[%clk 0:01:42]} 49. e5+ {[%clk 0:00:23.6]} 49...
Kg6 {[%clk 0:01:42.2]} 50. d5 {[%clk 0:00:24.7]} 50... Nh7 {[%clk 0:01:43.3]}
51. d6 {[%clk 0:00:24.6]} 51... Kf7 {[%clk 0:01:44.4]} 52. d7 {[%clk 0:00:24.4]}
52... Nf8 {[%clk 0:01:46.3]} 53. d8=N+ {[%clk 0:00:23.8]} 53... Ke8 {[%clk
0:01:46.8]} 54. Kf5 {[%clk 0:00:23.2]} 54... Nd7 {[%clk 0:01:47.4]} 55. Rxd7
{[%clk 0:00:23.4]} 55... Kxd7 {[%clk 0:01:48.4]} 56. Kf6 {[%clk 0:00:23.6]}
56... Kxd8 {[%clk 0:01:49.2]} 57. Kf7 {[%clk 0:00:24.8]} 57... b5 {[%clk
0:01:49]} 58. e6 {[%clk 0:00:26.7]} 58... a5 {[%clk 0:01:49.8]} 59. e7+ {[%clk
0:00:28.1]} 59... Kc7 {[%clk 0:01:51.5]} 60. e8=Q {[%clk 0:00:30]} 60... Kb6
{[%clk 0:01:52.1]} 61. Ke6 {[%clk 0:00:30.6]} 61... b4 {[%clk 0:01:53.1]} 62.
cxb4 {[%clk 0:00:31.2]} 62... axb4 {[%clk 0:01:55]} 63. Kd5 {[%clk 0:00:31.9]}
63... b3 {[%clk 0:01:56.4]} 64. axb3 {[%clk 0:00:33.5]} 64... Ka5 {[%clk
0:01:57.4]} 65. Kc5 {[%clk 0:00:33.3]} 65... Ka6 {[%clk 0:01:58.6]} 66. Qa8#
{[%clk 0:00:34.8]} 1-0

[Event "*** Titled Tuesday Blitz"]
[Site "Chess.com"]
[Date "2019.04.02"]
[Round "10"]
[White "RegZryt"]
[Black "Panchenko_Dmitry"]
[Result "0-1"]
[WhiteElo "2568"]
[BlackElo "2546"]
[TimeControl "180+2"]
[EndTime "16:18:21 PDT"]
[Termination "Panchenko_Dmitry won by resignation"]

1. d4 {[%clk 0:03:01.9]} 1... d5 {[%clk 0:03:00.1]} 2. c4 {[%clk 0:03:02.9]}
2... c6 {[%clk 0:03:01.2]} 3. Nf3 {[%clk 0:03:03.9]} 3... Nf6 {[%clk 0:03:02]}
4. e3 {[%clk 0:03:05.3]} 4... a6 {[%clk 0:03:02.6]} 5. Bd3 {[%clk 0:03:05.6]}
5... b5 {[%clk 0:03:03.2]} 6. cxb5 {[%clk 0:03:00]} 6... cxb5 {[%clk 0:03:03.1]}
7. O-O {[%clk 0:03:01.2]} 7... e6 {[%clk 0:03:01.5]} 8. Bd2 {[%clk 0:03:02.7]}
8... Bd6 {[%clk 0:02:59.3]} 9. Qe1 {[%clk 0:03:01.9]} 9... Nc6 {[%clk
0:02:48.4]} 10. Nc3 {[%clk 0:03:01]} 10... Bb7 {[%clk 0:02:40.7]} 11. Rc1 {[%clk
0:03:02]} 11... Rc8 {[%clk 0:02:31.2]} 12. h3 {[%clk 0:02:59]} 12... O-O {[%clk
0:02:29.7]} 13. Ne2 {[%clk 0:03:00]} 13... Ne4 {[%clk 0:02:25.9]} 14. Bxe4
{[%clk 0:03:00.1]} 14... dxe4 {[%clk 0:02:26.8]} 15. Nh2 {[%clk 0:03:00.5]}
15... e5 {[%clk 0:02:19.7]} 16. dxe5 {[%clk 0:02:46.4]} 16... Nxe5 {[%clk
0:02:20.4]} 17. Rxc8 {[%clk 0:02:45.7]} 17... Qxc8 {[%clk 0:02:20.7]} 18. Bc3
{[%clk 0:02:37.3]} 18... Nf3+ {[%clk 0:02:06.4]} 19. gxf3 {[%clk 0:01:45.1]}
19... exf3 {[%clk 0:02:07.2]} 20. Ng4 {[%clk 0:01:26.9]} 20... h5 {[%clk
0:02:05.1]} 21. Ng3 {[%clk 0:01:14.2]} 21... hxg4 {[%clk 0:02:01.9]} 22. Qd2
{[%clk 0:01:15.3]} 22... Bxg3 {[%clk 0:01:46.8]} 23. fxg3 {[%clk 0:01:17.2]}
23... f2+ {[%clk 0:01:37.3]} 24. Qxf2 {[%clk 0:01:01.2]} 24... Qc6 {[%clk
0:01:34.7]} 25. Kh2 {[%clk 0:01:02.2]} 25... gxh3 {[%clk 0:01:32.1]} 26. Rg1
{[%clk 0:01:02.8]} 26... Rd8 {[%clk 0:01:18.3]} 27. Qf4 {[%clk 0:01:00.4]} 27...
Rd1 {[%clk 0:00:54.5]} 28. e4 {[%clk 0:00:22.4]} 28... Rxg1 {[%clk 0:00:52.5]}
29. Kxg1 {[%clk 0:00:23.4]} 29... Qxe4 {[%clk 0:00:52.6]} 30. Qxe4 {[%clk
0:00:24.5]} 30... Bxe4 {[%clk 0:00:53]} 31. a3 {[%clk 0:00:25.1]} 31... f6
{[%clk 0:00:50.8]} 32. Kh2 {[%clk 0:00:26.6]} 32... Bf5 {[%clk 0:00:52]} 33. Bd4
{[%clk 0:00:27.7]} 33... Bg4 {[%clk 0:00:52.9]} 34. Bc3 {[%clk 0:00:29.1]} 34...
Kf7 {[%clk 0:00:53.8]} 35. Bd4 {[%clk 0:00:30.5]} 35... Ke6 {[%clk 0:00:54.6]}
36. Bc3 {[%clk 0:00:31.7]} 36... g6 {[%clk 0:00:54.3]} 37. Bd4 {[%clk
0:00:32.9]} 37... f5 {[%clk 0:00:54.8]} 38. Be3 {[%clk 0:00:34]} 38... Ke5
{[%clk 0:00:52.3]} 39. Kg1 {[%clk 0:00:30.4]} 39... Ke4 {[%clk 0:00:51.9]} 40.
Bg5 {[%clk 0:00:30.2]} 40... Kd3 {[%clk 0:00:50.8]} 41. Kh2 {[%clk 0:00:29.1]}
41... Kc2 {[%clk 0:00:50.7]} 42. Bf6 {[%clk 0:00:30.5]} 42... g5 {[%clk
0:00:50.8]} 43. Kg1 {[%clk 0:00:14.9]} 43... f4 {[%clk 0:00:49.1]} 44. Kh2
{[%clk 0:00:15.1]} 44... f3 {[%clk 0:00:43.5]} 45. Kg1 {[%clk 0:00:13.9]} 45...
Kd1 {[%clk 0:00:43.7]} 46. Bxg5 {[%clk 0:00:14.8]} 46... Ke2 {[%clk 0:00:44]}
0-1